[Event "Titled Tuesday Blitz May 2 Early 2023"]
[White "Deac, Bogdan-Daniel"]
[Black "Bacrot, Etienne"]
[WhiteFideId "1226380"]
[BlackFideId "605506"]
[WhiteElo "2649"]
[BlackElo "2663"]
[Result "0-1"]
[Round "07"]
[TimeControl "180+2"]
[Date "2023.05.03"]
[WhiteClock "0:00:00"]
[BlackClock "0:00:00"]

1. d4 {[%clk 0:00:01]}  d5 {[%clk 0:00:01]} 2. Bf4 {[%clk 0:00:01]}  Nf6 {[%clk 0:00:01]} 3. e3 {[%clk 0:00:01]}  c5 {[%clk 0:00:01]} 4. Nd2 {[%clk 0:00:01]}  Nc6 {[%clk 0:00:01]} 5. c3 {[%clk 0:00:01]}  Qb6 {[%clk 0:00:01]} 6. Qb3 {[%clk 0:00:01]}  c4 {[%clk 0:00:01]} 7. Qc2 {[%clk 0:00:01]}  Bg4 {[%clk 0:00:01]} 8. e4 {[%clk 0:00:01]}  e6 {[%clk 0:00:01]} 9. Ne2 {[%clk 0:00:01]}  Bh5 {[%clk 0:00:01]} 10. Bg5 {[%clk 0:00:01]}  Nxe4 {[%clk 0:00:01]} 11. Nxe4 {[%clk 0:00:01]}  Bg6 {[%clk 0:00:01]} 12. N2g3 {[%clk 0:00:01]}  dxe4 {[%clk 0:00:01]} 13. Bxc4 {[%clk 0:00:01]}  e3 {[%clk 0:00:01]} 14. Qe2 {[%clk 0:00:01]}  Nxd4 {[%clk 0:00:01]} 15. cxd4 {[%clk 0:00:01]}  Qa5+ {[%clk 0:00:01]} 16. Kf1 {[%clk 0:00:01]}  Qxg5 {[%clk 0:00:01]} 17. Bb5+ {[%clk 0:00:01]}  Kd8 {[%clk 0:00:01]} 18. fxe3 {[%clk 0:00:01]}  Bd6 {[%clk 0:00:01]} 19. Kf2 {[%clk 0:00:01]}  Rc8 {[%clk 0:00:00]} 20. Bd3 {[%clk 0:00:01]}  Qh4 {[%clk 0:00:00]} 21. Rad1 {[%clk 0:00:00]}  Ke7 {[%clk 0:00:00]} 22. a3 {[%clk 0:00:00]}  Rc7 {[%clk 0:00:00]} 23. e4 {[%clk 0:00:00]}  Rhc8 {[%clk 0:00:00]} 24. Qf3 {[%clk 0:00:00]}  Bf4 {[%clk 0:00:00]} 25. Rhf1 {[%clk 0:00:00]}  Bh5 {[%clk 0:00:00]} 0-1


[Site "https://www.chess.com"]

[Event "Titled Tuesday Blitz May 2 Early 2023"]
[White "Shimanov, Aleksandr"]
[Black "Gharibyan, Mamikon"]
[WhiteFideId "4198603"]
[BlackFideId "13308300"]
[WhiteElo "2631"]
[BlackElo "2445"]
[Result "1-0"]
[Round "07"]
[TimeControl "180+2"]
[Date "2023.05.03"]
[WhiteClock "0:00:00"]
[BlackClock "0:00:00"]

1. e4 {[%clk 0:00:01]}  e5 {[%clk 0:00:01]} 2. Nf3 {[%clk 0:00:01]}  Nc6 {[%clk 0:00:01]} 3. Nc3 {[%clk 0:00:01]}  Nf6 {[%clk 0:00:01]} 4. h3 {[%clk 0:00:01]}  g6 {[%clk 0:00:01]} 5. d4 {[%clk 0:00:01]}  exd4 {[%clk 0:00:01]} 6. Nxd4 {[%clk 0:00:01]}  Bg7 {[%clk 0:00:01]} 7. Nxc6 {[%clk 0:00:01]}  bxc6 {[%clk 0:00:01]} 8. Bd3 {[%clk 0:00:01]}  O-O {[%clk 0:00:01]} 9. O-O {[%clk 0:00:01]}  Re8 {[%clk 0:00:01]} 10. Bg5 {[%clk 0:00:01]}  Rb8 {[%clk 0:00:01]} 11. Rb1 {[%clk 0:00:01]}  d5 {[%clk 0:00:01]} 12. Re1 {[%clk 0:00:01]}  h6 {[%clk 0:00:01]} 13. Bh4 {[%clk 0:00:01]}  Qd6 {[%clk 0:00:01]} 14. Bg3 {[%clk 0:00:01]}  Qd8 {[%clk 0:00:00]} 15. exd5 {[%clk 0:00:01]}  Rxe1+ {[%clk 0:00:00]} 16. Qxe1 {[%clk 0:00:01]}  Nxd5 {[%clk 0:00:00]} 17. Nxd5 {[%clk 0:00:00]}  cxd5 {[%clk 0:00:00]} 18. Qa5 {[%clk 0:00:00]}  Rxb2 {[%clk 0:00:00]} 19. Rxb2 {[%clk 0:00:00]}  Bxb2 {[%clk 0:00:00]} 20. Qxa7 {[%clk 0:00:00]}  c6 {[%clk 0:00:00]} 21. a4 {[%clk 0:00:00]}  h5 {[%clk 0:00:00]} 22. Qb8 {[%clk 0:00:00]}  Bc3 {[%clk 0:00:00]} 23. Ba6 {[%clk 0:00:00]}  h4 {[%clk 0:00:00]} 24. Bc7 {[%clk 0:00:00]}  Qe7 {[%clk 0:00:00]} 25. Qxc8+ {[%clk 0:00:00]}  Kg7 {[%clk 0:00:00]} 26. Bf1 {[%clk 0:00:00]}  Bd4 {[%clk 0:00:00]} 27. Bf4 {[%clk 0:00:00]}  Qe1 {[%clk 0:00:00]} 28. Be3 {[%clk 0:00:00]}  Bxe3 {[%clk 0:00:00]} 29. fxe3 {[%clk 0:00:00]}  Qxe3+ {[%clk 0:00:00]} 30. Kh1 {[%clk 0:00:00]}  Qc1 {[%clk 0:00:00]} 31. Qa6 {[%clk 0:00:00]}  Qxc2 {[%clk 0:00:00]} 32. a5 {[%clk 0:00:00]}  c5 {[%clk 0:00:00]} 33. Qd3 {[%clk 0:00:00]}  Qa2 {[%clk 0:00:00]} 34. Qc3+ {[%clk 0:00:00]}  d4 {[%clk 0:00:00]} 35. Qxc5 {[%clk 0:00:00]}  Qa1 {[%clk 0:00:00]} 36. Qb5 {[%clk 0:00:00]}  d3 {[%clk 0:00:00]} 37. Qxd3 {[%clk 0:00:00]}  Qxa5 {[%clk 0:00:00]} 38. Qd4+ {[%clk 0:00:00]} 1-0


[Site "https://www.chess.com"]

[Event "Titled Tuesday Blitz May 2 Early 2023"]
[White "Suleymanli, Aydin"]
[Black "Koellner, Ruben Gideon"]
[WhiteFideId "13413937"]
[BlackFideId "12993093"]
[WhiteElo "2559"]
[BlackElo "2314"]
[Result "1-0"]
[Round "07"]
[TimeControl "180+2"]
[Date "2023.05.03"]
[WhiteClock "0:00:00"]
[BlackClock "0:00:00"]

1. d4 {[%clk 0:00:01]}  d6 {[%clk 0:00:01]} 2. c4 {[%clk 0:00:01]}  e5 {[%clk 0:00:01]} 3. Nc3 {[%clk 0:00:01]}  exd4 {[%clk 0:00:01]} 4. Qxd4 {[%clk 0:00:01]}  Nc6 {[%clk 0:00:01]} 5. Qd2 {[%clk 0:00:01]}  g6 {[%clk 0:00:01]} 6. b3 {[%clk 0:00:01]}  Bh6 {[%clk 0:00:01]} 7. e3 {[%clk 0:00:01]}  Nf6 {[%clk 0:00:01]} 8. Bb2 {[%clk 0:00:01]}  O-O {[%clk 0:00:01]} 9. g3 {[%clk 0:00:01]}  Re8 {[%clk 0:00:01]} 10. Bg2 {[%clk 0:00:01]}  Bf5 {[%clk 0:00:01]} 11. Nge2 {[%clk 0:00:01]}  Ne4 {[%clk 0:00:01]} 12. Nxe4 {[%clk 0:00:01]}  Bxe4 {[%clk 0:00:01]} 13. Bxe4 {[%clk 0:00:01]}  Rxe4 {[%clk 0:00:01]} 14. Nc3 {[%clk 0:00:01]}  Re8 {[%clk 0:00:01]} 15. Nd5 {[%clk 0:00:01]}  Bg7 {[%clk 0:00:01]} 16. Bxg7 {[%clk 0:00:01]}  Kxg7 {[%clk 0:00:01]} 17. Qc3+ {[%clk 0:00:01]}  f6 {[%clk 0:00:01]} 18. O-O-O {[%clk 0:00:01]}  a5 {[%clk 0:00:01]} 19. a3 {[%clk 0:00:01]}  Re6 {[%clk 0:00:01]} 20. g4 {[%clk 0:00:01]}  Kf7 {[%clk 0:00:01]} 21. h4 {[%clk 0:00:01]}  Ne7 {[%clk 0:00:01]} 22. Nf4 {[%clk 0:00:01]}  Re5 {[%clk 0:00:01]} 23. g5 {[%clk 0:00:01]}  fxg5 {[%clk 0:00:01]} 24. hxg5 {[%clk 0:00:01]}  Kg8 {[%clk 0:00:01]} 25. Rh3 {[%clk 0:00:00]}  Qf8 {[%clk 0:00:00]} 26. Rdh1 {[%clk 0:00:00]}  Qg7 {[%clk 0:00:00]} 27. Rxh7 {[%clk 0:00:00]}  Qxh7 {[%clk 0:00:00]} 28. Rxh7 {[%clk 0:00:00]}  Kxh7 {[%clk 0:00:00]} 29. Nd3 {[%clk 0:00:00]}  Rf5 {[%clk 0:00:00]} 30. f4 {[%clk 0:00:00]}  Raf8 {[%clk 0:00:00]} 31. Nf2 {[%clk 0:00:00]}  b5 {[%clk 0:00:00]} 32. Ng4 {[%clk 0:00:00]}  Ng8 {[%clk 0:00:00]} 33. Kd2 {[%clk 0:00:00]}  bxc4 {[%clk 0:00:00]} 34. Qxc4 {[%clk 0:00:00]}  c5 {[%clk 0:00:00]} 35. Qa6 {[%clk 0:00:00]}  d5 {[%clk 0:00:00]} 36. Qa7+ {[%clk 0:00:00]}  R8f7 {[%clk 0:00:00]} 37. Qxc5 {[%clk 0:00:00]}  Rd7 {[%clk 0:00:00]} 38. Qd4 {[%clk 0:00:00]}  Re7 {[%clk 0:00:00]} 39. b4 {[%clk 0:00:00]}  axb4 {[%clk 0:00:00]} 40. axb4 {[%clk 0:00:00]}  Re4 {[%clk 0:00:00]} 41. Qa7+ {[%clk 0:00:00]}  Kh8 {[%clk 0:00:00]} 42. Nh6 {[%clk 0:00:00]}  d4 {[%clk 0:00:00]} 43. Nxf5 {[%clk 0:00:00]} 1-0


[Site "https://www.chess.com"]

[Event "Titled Tuesday Blitz May 2 Early 2023"]
[White "Martinez Alcantara, Jose Eduardo"]
[Black "Jia, Haoxiang"]
[WhiteFideId "3805662"]
[BlackFideId "8602999"]
[WhiteElo "2711"]
[BlackElo "2331"]
[Result "1-0"]
[Round "07"]
[TimeControl "180+2"]
[Date "2023.05.03"]
[WhiteClock "0:00:00"]
[BlackClock "0:00:00"]

1. e4 {[%clk 0:00:01]}  c5 {[%clk 0:00:01]} 2. Nf3 {[%clk 0:00:01]}  e6 {[%clk 0:00:01]} 3. c3 {[%clk 0:00:01]}  Nf6 {[%clk 0:00:01]} 4. Bd3 {[%clk 0:00:01]}  d5 {[%clk 0:00:01]} 5. e5 {[%clk 0:00:01]}  Nfd7 {[%clk 0:00:01]} 6. Bc2 {[%clk 0:00:01]}  Nc6 {[%clk 0:00:01]} 7. d4 {[%clk 0:00:01]}  b5 {[%clk 0:00:01]} 8. O-O {[%clk 0:00:01]}  Qb6 {[%clk 0:00:01]} 9. Be3 {[%clk 0:00:01]}  b4 {[%clk 0:00:01]} 10. Nbd2 {[%clk 0:00:01]}  bxc3 {[%clk 0:00:01]} 11. bxc3 {[%clk 0:00:01]}  cxd4 {[%clk 0:00:01]} 12. cxd4 {[%clk 0:00:01]}  Ba6 {[%clk 0:00:01]} 13. Re1 {[%clk 0:00:01]}  Be7 {[%clk 0:00:01]} 14. Rb1 {[%clk 0:00:01]}  Qc7 {[%clk 0:00:01]} 15. Rc1 {[%clk 0:00:01]}  Rc8 {[%clk 0:00:01]} 16. Bb1 {[%clk 0:00:01]}  O-O {[%clk 0:00:01]} 17. h3 {[%clk 0:00:01]}  g6 {[%clk 0:00:01]} 18. h4 {[%clk 0:00:01]}  Ba3 {[%clk 0:00:01]} 19. Rc3 {[%clk 0:00:01]}  Bb4 {[%clk 0:00:01]} 20. Rc1 {[%clk 0:00:01]}  Ba3 {[%clk 0:00:01]} 21. Rc3 {[%clk 0:00:01]}  Bb4 {[%clk 0:00:01]} 22. Rb3 {[%clk 0:00:01]}  Rb8 {[%clk 0:00:01]} 23. Ng5 {[%clk 0:00:01]}  Bxd2 {[%clk 0:00:01]} 24. Qxd2 {[%clk 0:00:01]}  Rxb3 {[%clk 0:00:01]} 25. axb3 {[%clk 0:00:01]}  Rb8 {[%clk 0:00:01]} 26. Qd1 {[%clk 0:00:01]}  Nf8 {[%clk 0:00:01]} 27. h5 {[%clk 0:00:01]}  Qa5 {[%clk 0:00:01]} 28. Kh2 {[%clk 0:00:01]}  Rxb3 {[%clk 0:00:00]} 29. h6 {[%clk 0:00:01]}  Rb2 {[%clk 0:00:00]} 30. Qf3 {[%clk 0:00:01]}  f5 {[%clk 0:00:00]} 31. exf6 {[%clk 0:00:01]}  Qc7+ {[%clk 0:00:00]} 32. Bf4 {[%clk 0:00:01]}  e5 {[%clk 0:00:00]} 33. f7+ {[%clk 0:00:00]} 1-0


[Site "https://www.chess.com"]

[Event "Titled Tuesday Blitz May 2 Early 2023"]
[White "Kuzubov, Yuriy"]
[Black "Korchmar, Vasiliy"]
[WhiteFideId "14112906"]
[BlackFideId "24131750"]
[WhiteElo "2496"]
[BlackElo "2370"]
[Result "0-1"]
[Round "07"]
[TimeControl "180+2"]
[Date "2023.05.03"]
[WhiteClock "0:00:00"]
[BlackClock "0:00:00"]

1. d4 {[%clk 0:00:01]}  d5 {[%clk 0:00:01]} 2. c4 {[%clk 0:00:01]}  c6 {[%clk 0:00:01]} 3. Nf3 {[%clk 0:00:01]}  Nf6 {[%clk 0:00:01]} 4. Nc3 {[%clk 0:00:01]}  e6 {[%clk 0:00:01]} 5. Bg5 {[%clk 0:00:01]}  Nbd7 {[%clk 0:00:01]} 6. e3 {[%clk 0:00:01]}  Be7 {[%clk 0:00:01]} 7. Be2 {[%clk 0:00:01]}  O-O {[%clk 0:00:01]} 8. O-O {[%clk 0:00:01]}  h6 {[%clk 0:00:01]} 9. Bh4 {[%clk 0:00:01]}  dxc4 {[%clk 0:00:01]} 10. a4 {[%clk 0:00:01]}  b6 {[%clk 0:00:01]} 11. Bxc4 {[%clk 0:00:01]}  Bb7 {[%clk 0:00:01]} 12. Qe2 {[%clk 0:00:01]}  Nd5 {[%clk 0:00:01]} 13. Bg3 {[%clk 0:00:01]}  Nxc3 {[%clk 0:00:01]} 14. bxc3 {[%clk 0:00:01]}  c5 {[%clk 0:00:01]} 15. e4 {[%clk 0:00:01]}  Nf6 {[%clk 0:00:01]} 16. Bd3 {[%clk 0:00:01]}  Rc8 {[%clk 0:00:01]} 17. a5 {[%clk 0:00:01]}  bxa5 {[%clk 0:00:01]} 18. Rfb1 {[%clk 0:00:01]}  Bc6 {[%clk 0:00:01]} 19. Qe3 {[%clk 0:00:00]}  a4 {[%clk 0:00:01]} 20. Ne5 {[%clk 0:00:00]}  Qa5 {[%clk 0:00:00]} 21. Nxc6 {[%clk 0:00:00]}  Rxc6 {[%clk 0:00:00]} 22. d5 {[%clk 0:00:00]}  Rb6 {[%clk 0:00:00]} 23. d6 {[%clk 0:00:00]}  Bd8 {[%clk 0:00:00]} 24. Rxb6 {[%clk 0:00:00]}  Bxb6 {[%clk 0:00:00]} 25. Bc2 {[%clk 0:00:00]}  a3 {[%clk 0:00:00]} 26. c4 {[%clk 0:00:00]}  Qb4 {[%clk 0:00:00]} 27. e5 {[%clk 0:00:00]}  Nd7 {[%clk 0:00:00]} 28. Qxa3 {[%clk 0:00:00]}  Qxc4 {[%clk 0:00:00]} 29. Qd3 {[%clk 0:00:00]}  Qxd3 {[%clk 0:00:00]} 30. Bxd3 {[%clk 0:00:00]}  f6 {[%clk 0:00:00]} 31. exf6 {[%clk 0:00:00]}  Rxf6 {[%clk 0:00:00]} 32. Bb5 {[%clk 0:00:00]}  Rf7 {[%clk 0:00:00]} 33. Re1 {[%clk 0:00:00]}  Nf8 {[%clk 0:00:00]} 34. Kf1 {[%clk 0:00:00]}  Rf5 {[%clk 0:00:00]} 35. Bc4 {[%clk 0:00:00]}  Kf7 {[%clk 0:00:00]} 36. Ke2 {[%clk 0:00:00]}  Ke8 {[%clk 0:00:00]} 37. f3 {[%clk 0:00:00]}  Kd7 {[%clk 0:00:00]} 38. Rd1 {[%clk 0:00:00]}  e5 {[%clk 0:00:00]} 39. Bb5+ {[%clk 0:00:00]}  Kd8 {[%clk 0:00:00]} 40. Rd5 {[%clk 0:00:00]}  Ne6 {[%clk 0:00:00]} 0-1


[Site "https://www.chess.com"]

[Event "Titled Tuesday Blitz May 2 Early 2023"]
[White "Vaibhav Jayant Raut"]
[Black "Hayrapetyan, Hovik"]
[WhiteFideId "5089034"]
[BlackFideId "13302639"]
[WhiteElo "2156"]
[BlackElo "2348"]
[Result "1/2-1/2"]
[Round "07"]
[TimeControl "180+2"]
[Date "2023.05.03"]
[WhiteClock "0:00:00"]
[BlackClock "0:00:00"]

1. c4 {[%clk 0:00:01]}  e5 {[%clk 0:00:01]} 2. g3 {[%clk 0:00:01]}  Nf6 {[%clk 0:00:01]} 3. Bg2 {[%clk 0:00:01]}  Nc6 {[%clk 0:00:01]} 4. Nc3 {[%clk 0:00:01]}  g6 {[%clk 0:00:01]} 5. d3 {[%clk 0:00:01]}  Bg7 {[%clk 0:00:01]} 6. Rb1 {[%clk 0:00:01]}  O-O {[%clk 0:00:01]} 7. e4 {[%clk 0:00:01]}  a5 {[%clk 0:00:01]} 8. Nge2 {[%clk 0:00:01]}  d6 {[%clk 0:00:01]} 9. O-O {[%clk 0:00:01]}  Nh5 {[%clk 0:00:01]} 10. Nd5 {[%clk 0:00:01]}  Ne7 {[%clk 0:00:01]} 11. Nxe7+ {[%clk 0:00:01]}  Qxe7 {[%clk 0:00:01]} 12. f4 {[%clk 0:00:01]}  exf4 {[%clk 0:00:01]} 13. Nxf4 {[%clk 0:00:01]}  Nxf4 {[%clk 0:00:01]} 14. Bxf4 {[%clk 0:00:01]}  h5 {[%clk 0:00:01]} 15. Bd2 {[%clk 0:00:01]}  h4 {[%clk 0:00:01]} 16. Bc3 {[%clk 0:00:01]}  hxg3 {[%clk 0:00:01]} 17. hxg3 {[%clk 0:00:01]}  Qg5 {[%clk 0:00:01]} 18. Qf3 {[%clk 0:00:01]}  Be5 {[%clk 0:00:01]} 19. Bxe5 {[%clk 0:00:00]}  dxe5 {[%clk 0:00:01]} 20. Rbe1 {[%clk 0:00:00]}  Be6 {[%clk 0:00:01]} 21. Qe3 {[%clk 0:00:00]}  Qxe3+ {[%clk 0:00:01]} 22. Rxe3 {[%clk 0:00:00]}  Rad8 {[%clk 0:00:01]} 23. b3 {[%clk 0:00:00]}  Kg7 {[%clk 0:00:01]} 24. Kf2 {[%clk 0:00:00]}  c5 {[%clk 0:00:01]} 25. a4 {[%clk 0:00:00]}  Rd6 {[%clk 0:00:01]} 26. Rh1 {[%clk 0:00:00]}  Rb6 {[%clk 0:00:01]} 27. Rb1 {[%clk 0:00:00]}  Bd7 {[%clk 0:00:01]} 28. Ree1 {[%clk 0:00:00]}  Rd8 {[%clk 0:00:01]} 29. Ke3 {[%clk 0:00:00]}  Be6 {[%clk 0:00:01]} 30. Bf3 {[%clk 0:00:00]}  Rd4 {[%clk 0:00:01]} 31. Be2 {[%clk 0:00:00]}  Rb4 {[%clk 0:00:01]} 32. Rf1 {[%clk 0:00:00]}  Bd7 {[%clk 0:00:01]} 33. Rfd1 {[%clk 0:00:00]}  Rd6 {[%clk 0:00:01]} 34. Rf1 {[%clk 0:00:00]}  Rdb6 {[%clk 0:00:01]} 35. Bd1 {[%clk 0:00:00]}  Bxa4 {[%clk 0:00:01]} 36. Ra1 {[%clk 0:00:00]}  Bxb3 {[%clk 0:00:00]} 37. Bxb3 {[%clk 0:00:00]}  Rxb3 {[%clk 0:00:00]} 38. Rxa5 {[%clk 0:00:00]}  Rd6 {[%clk 0:00:00]} 39. Rd1 {[%clk 0:00:00]}  b6 {[%clk 0:00:00]} 40. Ra7 {[%clk 0:00:00]}  b5 {[%clk 0:00:00]} 41. cxb5 {[%clk 0:00:00]}  c4 {[%clk 0:00:00]} 42. Rb7 {[%clk 0:00:00]}  cxd3 {[%clk 0:00:00]} 43. Rd2 {[%clk 0:00:00]}  Kf6 {[%clk 0:00:00]} 44. Rf2+ {[%clk 0:00:00]}  Kg5 {[%clk 0:00:00]} 45. Rd2 {[%clk 0:00:00]}  f5 {[%clk 0:00:00]} 46. exf5 {[%clk 0:00:00]}  gxf5 {[%clk 0:00:00]} 47. Rg7+ {[%clk 0:00:00]}  Kf6 {[%clk 0:00:00]} 48. Rb7 {[%clk 0:00:00]}  Ke6 {[%clk 0:00:00]} 49. Rb8 {[%clk 0:00:00]}  Rd4 {[%clk 0:00:00]} 50. b6 {[%clk 0:00:00]}  Re4+ {[%clk 0:00:00]} 51. Kf3 {[%clk 0:00:00]}  Reb4 {[%clk 0:00:00]} 52. Ke3 {[%clk 0:00:00]}  e4 {[%clk 0:00:00]} 53. g4 {[%clk 0:00:00]}  Rxb6 {[%clk 0:00:00]} 54. Rh8 {[%clk 0:00:00]}  R6b4 {[%clk 0:00:00]} 55. Rh6+ {[%clk 0:00:00]}  Kd5 {[%clk 0:00:00]} 56. Rh5 {[%clk 0:00:00]}  Rb1 {[%clk 0:00:00]} 57. Rxf5+ {[%clk 0:00:00]}  Ke6 {[%clk 0:00:00]} 58. Rf4 {[%clk 0:00:00]}  Re1+ {[%clk 0:00:00]} 59. Kf2 {[%clk 0:00:00]}  Rbb1 {[%clk 0:00:00]} 60. Kg3 {[%clk 0:00:00]}  Re3+ {[%clk 0:00:00]} 61. Kh4 {[%clk 0:00:00]}  Re2 {[%clk 0:00:00]} 62. Rxe2 {[%clk 0:00:00]}  dxe2 {[%clk 0:00:00]} 63. Rxe4+ {[%clk 0:00:00]}  Kf6 {[%clk 0:00:00]} 64. Rxe2 {[%clk 0:00:00]}  Rb3 {[%clk 0:00:00]} 65. Rf2+ {[%clk 0:00:00]}  Kg6 {[%clk 0:00:00]} 66. Rc2 {[%clk 0:00:00]}  Rb6 {[%clk 0:00:00]} 67. Rc5 {[%clk 0:00:00]}  Rb1 {[%clk 0:00:00]} 68. Rg5+ {[%clk 0:00:00]}  Kf6 {[%clk 0:00:00]} 69. Ra5 {[%clk 0:00:00]}  Rh1+ {[%clk 0:00:00]} 70. Kg3 {[%clk 0:00:00]}  Rg1+ {[%clk 0:00:00]} 71. Kf3 {[%clk 0:00:00]}  Rf1+ {[%clk 0:00:00]} 72. Kg2 {[%clk 0:00:00]}  Rb1 {[%clk 0:00:00]} 73. Rf5+ {[%clk 0:00:00]}  Kg6 {[%clk 0:00:00]} 74. Rc5 {[%clk 0:00:00]}  Rb3 {[%clk 0:00:00]} 75. Kf2 {[%clk 0:00:00]}  Rh3 {[%clk 0:00:00]} 76. Kg2 {[%clk 0:00:00]}  Ra3 {[%clk 0:00:00]} 77. Rb5 {[%clk 0:00:00]}  Ra1 {[%clk 0:00:00]} 78. Kf3 {[%clk 0:00:00]}  Ra6 {[%clk 0:00:00]} 79. Kf4 {[%clk 0:00:00]}  Rf6+ {[%clk 0:00:00]} 80. Kg3 {[%clk 0:00:00]}  Ra6 {[%clk 0:00:00]} 81. Kh4 {[%clk 0:00:00]}  Ra1 {[%clk 0:00:00]} 82. Rb6+ {[%clk 0:00:00]}  Kg7 {[%clk 0:00:00]} 83. Kh5 {[%clk 0:00:00]}  Ra3 {[%clk 0:00:00]} 84. Rb7+ {[%clk 0:00:00]}  Kg8 {[%clk 0:00:00]} 85. g5 {[%clk 0:00:00]}  Ra6 {[%clk 0:00:00]} 86. Rc7 {[%clk 0:00:00]}  Rb6 {[%clk 0:00:00]} 87. Rc8+ {[%clk 0:00:00]}  Kg7 {[%clk 0:00:00]} 88. Rc7+ {[%clk 0:00:00]}  Kg8 {[%clk 0:00:00]} 89. Rc3 {[%clk 0:00:00]}  Rb1 {[%clk 0:00:00]} 90. Kh6 {[%clk 0:00:00]}  Rb8 {[%clk 0:00:00]} 91. g6 {[%clk 0:00:00]}  Ra8 {[%clk 0:00:00]} 92. Rc7 {[%clk 0:00:00]}  Kh8 {[%clk 0:00:00]} 93. Rh7+ {[%clk 0:00:00]}  Kg8 {[%clk 0:00:00]} 94. Rd7 {[%clk 0:00:00]}  Rb8 {[%clk 0:00:00]} 95. Rc7 {[%clk 0:00:00]}  Ra8 {[%clk 0:00:00]} 96. Rg7+ {[%clk 0:00:00]}  Kh8 {[%clk 0:00:00]} 97. Rb7 {[%clk 0:00:00]}  Kg8 {[%clk 0:00:00]} 98. Kg5 {[%clk 0:00:00]}  Ra1 {[%clk 0:00:00]} 99. Rb8+ {[%clk 0:00:00]}  Kg7 {[%clk 0:00:00]} 100. Rb7+ {[%clk 0:00:00]}  Kg8 {[%clk 0:00:00]} 101. Rb4 {[%clk 0:00:00]}  Rg1+ {[%clk 0:00:00]} 102. Kf6 {[%clk 0:00:00]}  Rf1+ {[%clk 0:00:00]} 103. Ke6 {[%clk 0:00:00]}  Re1+ {[%clk 0:00:00]} 104. Kf5 {[%clk 0:00:00]}  Rf1+ {[%clk 0:00:00]} 105. Rf4 {[%clk 0:00:00]}  Rxf4+ {[%clk 0:00:00]} 106. Kxf4 {[%clk 0:00:00]}  Kg7 {[%clk 0:00:00]} 107. Kf5 {[%clk 0:00:00]}  Kg8 {[%clk 0:00:00]} 108. Kg4 {[%clk 0:00:00]}  Kg7 {[%clk 0:00:00]} 109. Kg5 {[%clk 0:00:00]}  Kg8 {[%clk 0:00:00]} 110. Kh6 {[%clk 0:00:00]}  Kh8 {[%clk 0:00:00]} 111. Kh5 {[%clk 0:00:00]}  Kg7 {[%clk 0:00:00]} 112. Kg5 {[%clk 0:00:00]}  Kg8 {[%clk 0:00:00]} 113. Kf6 {[%clk 0:00:00]}  Kf8 {[%clk 0:00:00]} 114. g7+ {[%clk 0:00:00]}  Kg8 {[%clk 0:00:00]} 115. Kg6 {[%clk 0:00:00]} 1/2-1/2


[Site "https://www.chess.com"]

[Event "Titled Tuesday Blitz May 2 Early 2023"]
[White "Djordjevic, Vuk"]
[Black "Golichenko, Ilija"]
[WhiteFideId "902098"]
[BlackFideId "14117223"]
[WhiteElo "2452"]
[BlackElo "2339"]
[Result "0-1"]
[Round "07"]
[TimeControl "180+2"]
[Date "2023.05.03"]
[WhiteClock "0:00:00"]
[BlackClock "0:00:00"]

1. d4 {[%clk 0:00:01]}  Nf6 {[%clk 0:00:01]} 2. Bg5 {[%clk 0:00:01]}  Ne4 {[%clk 0:00:01]} 3. Bf4 {[%clk 0:00:01]}  c5 {[%clk 0:00:01]} 4. f3 {[%clk 0:00:01]}  Nf6 {[%clk 0:00:01]} 5. dxc5 {[%clk 0:00:01]}  Qa5+ {[%clk 0:00:01]} 6. Nc3 {[%clk 0:00:01]}  Qxc5 {[%clk 0:00:01]} 7. e4 {[%clk 0:00:01]}  d6 {[%clk 0:00:01]} 8. Qd2 {[%clk 0:00:01]}  g6 {[%clk 0:00:01]} 9. Be3 {[%clk 0:00:01]}  Qc7 {[%clk 0:00:01]} 10. Nb5 {[%clk 0:00:01]}  Qd7 {[%clk 0:00:00]} 11. Nxa7 {[%clk 0:00:01]}  Nc6 {[%clk 0:00:00]} 12. Bb5 {[%clk 0:00:01]}  Bg7 {[%clk 0:00:00]} 13. Ne2 {[%clk 0:00:01]}  O-O {[%clk 0:00:00]} 14. O-O {[%clk 0:00:01]}  Qc7 {[%clk 0:00:00]} 15. Nxc8 {[%clk 0:00:01]}  Rfxc8 {[%clk 0:00:00]} 16. c4 {[%clk 0:00:00]}  Nd7 {[%clk 0:00:00]} 17. Nc3 {[%clk 0:00:00]}  Nce5 {[%clk 0:00:00]} 18. b3 {[%clk 0:00:00]}  e6 {[%clk 0:00:00]} 19. Rad1 {[%clk 0:00:00]}  Nc5 {[%clk 0:00:00]} 20. Na4 {[%clk 0:00:00]}  Nxa4 {[%clk 0:00:00]} 21. bxa4 {[%clk 0:00:00]}  Nxc4 {[%clk 0:00:00]} 22. Bxc4 {[%clk 0:00:00]}  Qxc4 {[%clk 0:00:00]} 23. Qxd6 {[%clk 0:00:00]}  Qxa4 {[%clk 0:00:00]} 24. Rd2 {[%clk 0:00:00]}  Rc2 {[%clk 0:00:00]} 25. Rb1 {[%clk 0:00:00]}  Qxa2 {[%clk 0:00:00]} 26. Rxb7 {[%clk 0:00:00]}  Rxd2 {[%clk 0:00:00]} 27. Qxd2 {[%clk 0:00:00]}  Qa1+ {[%clk 0:00:00]} 28. Qc1 {[%clk 0:00:00]}  Qxc1+ {[%clk 0:00:00]} 29. Bxc1 {[%clk 0:00:00]}  Bd4+ {[%clk 0:00:00]} 30. Kf1 {[%clk 0:00:00]}  Ra1 {[%clk 0:00:00]} 31. Rb8+ {[%clk 0:00:00]}  Kg7 {[%clk 0:00:00]} 32. Rc8 {[%clk 0:00:00]}  Bb2 {[%clk 0:00:00]} 33. Ke2 {[%clk 0:00:00]}  Rxc1 {[%clk 0:00:00]} 34. Rb8 {[%clk 0:00:00]}  Be5 {[%clk 0:00:00]} 35. Rb5 {[%clk 0:00:00]}  Bxh2 {[%clk 0:00:00]} 36. Kf2 {[%clk 0:00:00]}  Bd6 {[%clk 0:00:00]} 37. g4 {[%clk 0:00:00]}  h6 {[%clk 0:00:00]} 38. Ke3 {[%clk 0:00:00]}  Rc3+ {[%clk 0:00:00]} 39. Ke2 {[%clk 0:00:00]}  Bf4 {[%clk 0:00:00]} 40. Kf2 {[%clk 0:00:00]}  e5 {[%clk 0:00:00]} 41. Rb6 {[%clk 0:00:00]}  h5 {[%clk 0:00:00]} 42. Ra6 {[%clk 0:00:00]}  h4 {[%clk 0:00:00]} 43. Kg2 {[%clk 0:00:00]}  Rc2+ {[%clk 0:00:00]} 44. Kg1 {[%clk 0:00:00]}  h3 {[%clk 0:00:00]} 45. Ra1 {[%clk 0:00:00]}  h2+ {[%clk 0:00:00]} 46. Kh1 {[%clk 0:00:00]}  Rf2 {[%clk 0:00:00]} 47. g5 {[%clk 0:00:00]}  Rxf3 {[%clk 0:00:00]} 48. Rd1 {[%clk 0:00:00]}  Rg3 {[%clk 0:00:00]} 49. Rf1 {[%clk 0:00:00]}  Rg1+ {[%clk 0:00:00]} 50. Rxg1 {[%clk 0:00:00]}  hxg1=Q+ {[%clk 0:00:00]} 0-1


[Site "https://www.chess.com"]